Cogmind - Beta 10.2 *** ADVENTURER MODE // 2020.12.26 @ 14:14:44 Player: Yog-Sothoth Result: Self-destructed Performance ------------- Evolutions (1) 500 Regions Visited (2) 400 Robots Destroyed (20) 100 Value Destroyed (504) 504 Prototype IDs (5) 100 Alien Tech Used (0) 0 Bonus (0) 0 TOTAL SCORE: 1604 Bonus ------- None Cogmind --------- Core Integrity 389/400 Matter 276/300 Energy 250/250 System Corruption 0% Temperature Cool (0) Movement Hovering (116) Ox1 Location -9/Materials Parts ------- > --- POWER (1) -------- Ion Engine > --- PROPULSION (3) --- Hover Unit Hover Unit Hover Unit > --- UTILITY (3) ------ Small Storage Unit Sensor Array ECM Suite > --- WEAPON (2) ------- Shotgun > --- INVENTORY (6) ---- Armored Wheel Hover Unit Visual Processing Unit Tractor Beam Integration Mediator Peak State ------------ > --- POWER ------------ Ion Engine > --- PROPULSION ------- Hover Unit Hover Unit Hover Unit > --- UTILITY ---------- Small Storage Unit Sensor Array ECM Suite > --- WEAPON ----------- Shotgun Plasma Cutter > --- INVENTORY -------- Hover Unit Visual Processing Unit Tractor Beam Integration Mediator [Rating: 11] Favorites ----------- Power Ion Engine Engine Ion Engine Propulsion Light Treads Treads Light Treads Hover Unit Hover Unit Utility Small Storage Unit Device ECM Suite Storage Small Storage Unit Weapon Shotgun Energy Gun Medium Laser Ballistic Gun Shotgun Launcher Grenade Launcher Special Weapon Plasma Cutter Build | -11 -10 -9 ------- Run | Scr Mat Mat Slots Evolved 2 | . . 2 Power . | . . . Propulsion 1 | . . 1 Utility 1 | . . 1 Weapon . | . . . Parts Attached 19 | 6 8 5 Power 3 | 1 2 . Engine 3 | 1 2 . Core . | . . . Reactor . | . . . Propulsion 5 | 2 . 3 Treads 2 | 2 . . Leg . | . . . Wheel . | . . . Hover 3 | . . 3 Flight . | . . . Utility 3 | 1 1 1 Device 2 | . 1 1 Storage 1 | 1 . . Processor . | . . . Hackware . | . . . Protection . | . . . Artifact . | . . . Weapon 8 | 2 5 1 Energy Gun 2 | . 2 . Energy Cannon . | . . . Ballistic Gun 4 | 2 2 . Ballistic Cannon . | . . . Launcher 1 | . 1 . Special Weapon 1 | . . 1 Impact Weapon . | . . . Slashing Weapon . | . . . Piercing Weapon . | . . . Special Melee Weapon . | . . . Unidentified Prototypes . | . . . Parts Lost 1 | . . 1 Power . | . . . Propulsion . | . . . Utility . | . . . Weapon 1 | . . 1 Highest Loss Streak 1 | . . 1 Average Slot Usage (%) 99 | . 99 96 Engine 13 | . 14 11 Treads 25 | . 28 1 Hover 2 | . . 31 Device 14 | . 13 20 Storage 13 | . 14 11 Energy Gun 7 | . 8 . Ballistic Gun 17 | . 17 12 Launcher 2 | . 2 . Naked Turns . | . . . Heaviest Build 16 | 12 16 16 Greatest Support 40 | 40 40 40 Greatest Overweight (x) 2 | . . 2 Average Overweight (x) . | . . . Largest Inventory Capacity 6 | 6 6 6 Average Capacity 5 | 5 6 6 Most Carried 6 | 4 6 6 Average Carried 5 | 1 5 4 Final Capacity 6 | 6 6 6 Final Carried 6 | 4 6 5 Class Distribution -------------------- 100% | Mutant Dominant Class ---------------- Mutant | -10/Materials Mutant | -9/Materials Resources | -11 -10 -9 ----------- Run | Scr Mat Mat Matter Collected 694 | 260 352 82 Remotely . | . . . Salvage Created 628 | . 508 120 Parts 38 | . 28 10 Haulers Intercepted 1 | . 1 . Recyclers Shooed 1 | . . 1 Parts Field Recycled . | . . . Retrieved Matter . | . . . Parts Self-Destructed . | . . . Prevented . | . . . Kills | -11 -10 -9 ------- Run | Scr Mat Mat Combat Hostiles Destroyed 14 | . 12 2 Guns 9 | . 8 1 Cannons 1 | . . 1 AOE 4 | . 4 . Classes Destroyed 7 | . 6 1 Worker 2 | . 2 . Hauler 1 | . 1 . Recycler 1 | . 1 . Watcher 2 | . 2 . Swarmer 3 | . 3 . Grunt 9 | . 9 . Sentry 2 | . . 2 Best Kill Streak 5 | . 5 1 Combat Bots Only 4 | . 4 1 Max Kills in Single Turn 3 | . 3 1 Gunslinging 1 | . 1 . Exploded 3 | . 3 . Melee . | . . . Uniques/NPCs Destroyed . | . . . Combat | -11 -10 -9 -------- Run | Scr Mat Mat Damage Taken 332 | . 221 111 Core 43 | . 32 11 Absorbed by Shields . | . . . Core Remaining (%) 93 | 100 87 . Volleys Fired 46 | . 33 13 Largest 2 | . 2 2 Hottest 100 | . 100 43 Shots Fired 80 | . 62 18 Gun 71 | . 58 13 Cannon . | . . . Launcher 4 | . 4 . Special 5 | . . 5 Kinetic 59 | . 46 13 Thermal 17 | . 12 5 Explosive 4 | . 4 . Electromagnetic . | . . . Robot Hit Streak 16 | . 16 14 Robot Miss Streak 3 | . 3 2 Penetration Max . | . . . Secondary Targets 2 | . 2 . Max Gunslinging Chain 1 | . 1 . Shots Hit Robots 68 | . 52 16 Core Hits 36 | . 30 6 Critical Hits 1 | . . 1 Critical Kills . | . . . Critical Parts Destroyed 1 | . . 1 Melee Attacks . | . . . Impact . | . . . Slashing . | . . . Piercing . | . . . Sneak Attacks . | . . . Combat Hostiles . | . . . Follow-up Attacks . | . . . Damage Inflicted 1288 | . 1046 242 Guns 856 | . 670 186 Cannons . | . . . Explosions 376 | . 376 . Melee . | . . . Ramming . | . . . Kinetic 719 | . 533 186 Thermal 193 | . 137 56 Explosive 376 | . 376 . Electromagnetic . | . . . Impact . | . . . Slashing . | . . . Piercing . | . . . Highest Corruption . | . . . Average Corruption . | . . . Corruption Purged . | . . . Overload Shots . | . . . Overflow Damage 7 | . 7 . Projectiles . | . . . Explosions 7 | . 7 . Melee . | . . . Knockbacks . | . . . Impact . | . . . Kinetic . | . . . Secondary . | . . . Self-Inflicted Damage 8 | . 8 . Shots 1 | . 1 . Rammed . | . . . Targets Rammed . | . . . Kicked . | . . . Crushed . | . . . Highest Temperature 195 | . 195 . Average Temperature 51 | . 51 . Received Heat Transfer 168 | . 123 45 Siege Activations . | . . . Robots Corrupted . | . . . Combat Hostiles . | . . . Parts Fried . | . . . Impact Corruptions . | . . . Robots Melted . | . . . Combat Hostiles . | . . . Parts Melted 4 | . 3 1 Heat Transferred 592 | . 407 185 Parts Sabotaged . | . . . Parts Stolen . | . . . Parts Stripped . | . . . Power Chain Reactions . | . . . Missiles Intercepted . | . . . Alert | -11 -10 -9 ------- Run | Scr Mat Mat Peak Influence 292 | . 292 98 Initial 33 | . . 33 Average 72 | . 80 50 Maximum Alert Level 1 | . 1 . Low Security (%) 91 | 100 90 100 Level 1 8 | . 9 . Level 2 . | . . . Level 3 . | . . . Level 4 . | . . . Level 5 . | . . . High Security . | . . . Max Security . | . . . Squads Dispatched 2 | . 2 . Investigation 2 | . 2 . Extermination . | . . . Reinforcement . | . . . Assault . | . . . Garrison . | . . . Intercept . | . . . Construction Impeded . | . . . Haulers Reinforced . | . . . Stealth | -11 -10 -9 --------- Run | Scr Mat Mat Distress Signals . | . . . Communications Jammed . | . . . Distress Signals . | . . . Times Spotted 27 | . 21 6 Peak Tracking Total 5 | . 4 5 Tactical Retreats 3 | . 3 . Traps | -11 -10 -9 ------- Run | Scr Mat Mat Traps Triggered 1 | . 1 . Indirectly . | . . . Trap Hack Attempts . | . . . Triggered . | . . . Disarmed 6 | . 6 . Reprogrammed . | . . . Reused . | . . . Traps Extracted . | . . . Installed . | . . . Triggered . | . . . Machines | -11 -10 -9 ---------- Run | Scr Mat Mat Machines Disabled 1 | . 1 . Max in Single Turn 1 | . 1 . Machines Sabotaged . | . . . Garrisons Compromised . | . . . Overloaded Fab Kills . | . . . Fab Network Shutdowns . | . . . Hacking | -11 -10 -9 --------- Run | Scr Mat Mat Machines Accessed 8 | . 8 . Terminals 7 | . 7 . Fabricators . | . . . Repair Stations 1 | . 1 . Recycling Units . | . . . Scanalyzers . | . . . Garrison Access . | . . . Total Hacks 17 | . 17 . Successful 12 | . 12 . Failed 5 | . 5 . Catastrophic . | . . . Database Lockouts . | . . . Manual . | . . . Terminals 15 | . 15 . Fabricators . | . . . Repair Stations 2 | . 2 . Recycling Units . | . . . Scanalyzers . | . . . Garrison Access . | . . . Terminal Hacks 12 | . 12 . Record 1 | . 1 . Prototype ID Bank 3 | . 3 . Alert Level 2 | . 2 . Disarm Traps 1 | . 1 . Dispatch Records 2 | . 2 . Reinforcement Status 1 | . 1 . Hauler Manifests 1 | . 1 . Zone Layout 1 | . 1 . Fabricator Hacks . | . . . Repair Station Hacks . | . . . Recycling Unit Hacks . | . . . Scanalyzer . | . . . Garrison Access Hacks . | . . . Unauthorized Hacks . | . . . Terminals . | . . . Fabricators . | . . . Repair Stations . | . . . Recycling Units . | . . . Scanalyzers . | . . . Garrison Access . | . . . Data Cores Recovered . | . . . Used . | . . . Hacking Detections 5 | . 5 . Full Trace Events 1 | . 1 . Feedback Events . | . . . Feedback Blocked . | . . . Robot Schematics Acquired . | . . . Robots Built . | . . . Matter . | . . . Time . | . . . Total Robot Build Rating . | . . . Part Schematics Acquired . | . . . Parts Built . | . . . Matter . | . . . Time . | . . . Total Part Build Rating . | . . . Parts Repaired . | . . . Time . | . . . Parts Recycled . | . . . Recycled Matter . | . . . Retrieved Matter . | . . . Retrieved Components . | . . . Parts Scanalyzed . | . . . Part Schematics Acquired . | . . . Parts Damaged . | . . . Bothacking | -11 -10 -9 ------------ Run | Scr Mat Mat Used RIF Installer . | . . . Robots Hacked . | . . . Non-combat . | . . . Combat . | . . . Robot Hacks Applied . | . . . Relay Couplers Released . | . . . Robots Rewired . | . . . Allies Hacked . | . . . Hacks Repelled . | . . . Allies | -11 -10 -9 -------- Run | Scr Mat Mat Total Allies . | . . . Largest Group . | . . . Highest-Rated Group . | . . . Highest-Rated Ally . | . . . Total Orders . | . . . Ally Attacks . | . . . Total Damage . | . . . Kills . | . . . Allies Corrupted . | . . . Allies Melted . | . . . Intel | -11 -10 -9 ------- Run | Scr Mat Mat Robot Analysis Total . | . . . Derelict Logs Recovered . | . . . Drone Launches . | . . . Drone Recoveries . | . . . Exploration | -11 -10 -9 ------------- Run | Scr Mat Mat Turns Passed 1785 | 118 1531 136 Spaces Moved 979 | 69 835 75 Core 4 | 4 . . Treads 905 | 65 835 5 Legs . | . . . Wheels . | . . . Hover 70 | . . 70 Flight . | . . . Fastest Speed 50 | 50 160 52 Average Speed 152 | 153 160 73 Slowest Speed 220 | 160 160 220 Overloaded Moves . | . . . Propulsion Burnouts . | . . . Robots Hopped . | . . . Cave-ins Triggered . | . . . Exploration Rate (%) 37 | 5 99 9 Regions Visited 2 Branch Regions . Pre-discovered Areas . | . . . Known Exits Taken . | . . . Unknown Exits Taken 2 | 1 1 . Scrap Searched . | . . . Spaces Dug . | . . . Terrain Destroyed 30 | . 30 . Melee . | . . . Projectile . | . . . AOE 30 | . 30 . Terrain Rammed . | . . . Walls Destroyed . | . . . Machines Disabled . | . . . Actions | -11 -10 -9 --------- Run | Scr Mat Mat Total 1185 | 78 975 132 Wait 99 | . 65 34 Move 977 | 68 834 75 Hop . | . . . Pick Up 20 | 4 15 1 Fast Attach 16 | 6 6 4 Attach 1 | . . 1 Detach 1 | . 1 . Swap 2 | . 2 . Drop 23 | . 19 4 Fire 46 | . 33 13 Melee . | . . . Ram . | . . . Kick . | . . . Crush . | . . . Escape Stasis . | . . . Rewire . | . . . Trap . | . . . Miscellaneous . | . . . Route ------- -11/Scrapyard -10/Materials (discovered 4 exits: [*Mat x3] / [*Min]) -9/Materials (discovered 1 exit: [*Sto]) History --------- Turn | Location | Event 3 | -11/Scrapyard | Discovered new exit (range 15) 119 | -11/Scrapyard | Entered Materials 317 | -10/Materials | Build established: Mutant 364 | -10/Materials | Discovered new exit (range 16) 624 | -10/Materials | Discovered new exit (range 5) 1012 | -10/Materials | Discovered new exit (range 16) 1626 | -10/Materials | Discovered new exit (range 16) 1650 | -10/Materials | Entered another Materials area 1650 | -9/Materials | Evolved 2 slots: Propulsion x1, Utility x1 1750 | -9/Materials | Discovered new exit (range 15) 1786 | -9/Materials | Self-destructed Last Messages --------------- Extracted 48 matter. Extracted 2 matter. T-07 Excavator is excavating. Acquired Arm. Wheel. T-07 Excavator is excavating. U-05 Engineer lays Concrete. Y-45 Defender destroyed. Acquired 12 matter. EXIT=FOUND Y-45 Defender suffers critical hit. Destroyed Lgt. Treads. Acquired 4 matter. Plasma Cutter destroyed. Acquired 4 matter. Destroyed Heat Sink. Heat Sink melted. Y-45 Defender destroyed. Acquired 4 matter. R-06 Scavenger collects Lgt. Armor Plating. R-06 Scavenger collects Imp. Ion Engine. Map ----- +----------------------------------------------------+ | ?????????????????????????????????????????????????? | | ?????????????????????????????????????????????????? | | ?????????????????????????????????????????????????? | | ?????????????????????????????????????????????????? | | ?????????????????????????????????????????????????? | | ?????? ????????????????????????????????????????? | | ?????# ????????????????????????????????????????? | | ?????# ????????????????????????????????????????? | | ?????# ????????????????????????????????????????? | | ?????# ????????????????????????????????????????? | | ?????# #???????????????????????????????????????? | | ?????# #?????????########??????????????????????? | | ?????# #?????????# #??????????????????????? | | ?????# #?????????# """ #??????????????????????? | | ?????# #?????????# """ #??????????????????????? | | ?????# #?????????# """ #??????????????????????? | | ?????# #?????????# #??????????????????????? | | ?????# #########?# #????????#+##??????????? | | ?????+ # ######+####### ?????????? | | ?????# # + k + ?????????? | | ?????# + # #### ?????????? | | ?????# ######### ^^ #?????????????????????? | | ?????# ^ #?????????????????????? | | ?????# r #?????????????????????? | | ######### != """ #####! #???????????? | | # [ """ @!%=[%*[[ l g